Workbook

Sheet Overview
AB2: CalGEM Contact Information
AB3: costestimation@conservation.ca.gov
A30: Calgem

Sheet graphic (hidden)

Sheet Input (hidden)
B8: Select Location Type
B10: Operator Name: | D10: C Case Company
B12: Operator Code: | D12: X1234
B14: Region | D14: Inland
B17: Facility Location : | D17: Section-Township-Range
B19: Facility ID : | D19: 12345678
B21: Facility Status : | D21: Deserted
A22: W
B23: Well Name : | D23: Cabrillo 1
B25: Well ID : | D25: 2017-1234
B27: Well Depth (ft) : | D27: 3000
B29: Number of Casing Strings : | D29: 2
B31: Well Status : | D31: Idle
A32: F
B33: Lease Name : | D33: Section-Township-Range
B35: Lease ID : | D35: X1234
B37: Lease Status : | D37: Deserted
A38: L
B43: CalGEM Contact Information
B45: Contact Name: | D45: Ibukun Ajayi / Michael Takamori
B47: Contact Email Address: | D47: costestimation@conservation.ca.gov
B49: Contact Phone Number: | D49: 123-456-7890
B51: Date: | D51: =TODAY() -> 2022-04-01
B55: Well
B56: Facility
B57: Lease

Sheet Well P&A Cost Estimate
K2: Well Plug and Abandonment Cost Estimate | W2: References
I4: Well Depth (ft) | N4: 3000 | O4: =IF(N4<1001,X22,IF(AND(N4>1000, N4<3001), X23, IF(AND(N4>3000, N4<5001), X24,X25))) -> 4 | S4: =X25 -> 10
I6: Number of Casing Strings | N6: 2 | O6: =IF(N6<3,X28,IF(AND(N6>2, N6<5), X29, X30)) -> 0 | S6: =X30 -> 8
I8: Risk Factors | O8: Weight | W8: Selection
I10: Well Location | S10: =SUM(S11:S14) -> 27 | X10: N
I11: Critical well as defined by Section 1720, within city limit or urban area as defined by Section 1760 | N11: Y | O11: =IF(N11="Y",S11,0) -> 10 | S11: 10 | T11: =S11/$S$10 -> 0.3703703704 | X11: Y
I12: Environmentally sensitive wellhead as defined in Section 1760 | N12: N | O12: =IF(N12="Y",S12,0) -> 0 | S12: 7 | T12: =S12/$S$10 -> 0.2592592593
I13: Located in an area of known geologic hazard including subsidence, landslide, or history of damage to the well from seismicity | N13: N | O13: 0 | S13: 5 | T13: 0.1851851852
I14: Surface obstacles preventing access such as buildings, structures, surface-use, roads, irrigation systems, and terrain | N14: Y | O14: 5 | S14: 5 | T14: 0.1851851852
I16: Well Condition | S16: =SUM(S17:S22)-S17 -> 30 | W16: Well Age
I17: Unknown well condition | N17: N | O17: =IF(N17="Y",S17,0) -> 0 | S17: 25 | T17: =S17/$S$16 -> 0.8333333333 | W17: 0-25 | X17: 0
I18: Well has pressure in the casing or tubing at the surface, or well is open to the atmosphere | N18: N | O18: =IF($N$17="Y","",IF(N18="Y",S18,0)) -> 0 | S18: 5 | T18: =S18/$S$16 -> 0.1666666667 | W18: 25-50 | X18: 3
I19: Well has inadequate casing or inadequate tubing intergrity | N19: Y | O19: =IF($N$17="Y","",IF(N19="Y",S19,0)) -> 6 | S19: 6 | T19: 0.2 | W19: 50 + | X19: 5
I20: Well contains junk or other downhole issues such as stuck rods, packer, scales in casing, or fish that require special tools for intervention. | N20: N | O20: 0 | S20: 9 | T20: 0.3
I21: Well fluid level is above the base of freshwater or USDW | N21: Y | O21: 5 | S21: 5 | T21: 0.1666666667 | W21: Well Depth factor
I22: Age of Well | N22: 50 + | O22: =VLOOKUP(N22,W17:X19,2) -> 5 | S22: 5 | T22: 0.1666666667 | W22: 0 | X22: 0 | Y22: 1
W23: 1000 | X23: 4 | Y23: 1.2
I24: Other Enviromental or Safety Concerns | S24: =SUM(S25:S27) -> 10 | W24: 3000 | X24: 7 | Y24: 1.3
I25: History of environmental spill / leaks | N25: Y | O25: =IF(N25="Y",S25,0) -> 5 | S25: 5 | T25: =S25/$S$24 -> 0.5 | W25: 5000 | X25: 10 | Y25: 1.4
I27: Presence of H2S or CO2 production | N27: Y | O27: 5 | S27: 5 | T27: =S27/$S$24 -> 0.5 | W27: Casing String
W28: 2 | X28: 0 | Y28: 1
I29: Aggregated Well Score | N29: =SUM(O11:O27)+O6+O4 -> 45 | S29: =SUM(S25:S27,S17:S22,S11:S14)+S6+S4-S17 -> 85 | W29: 3 | X29: 4 | Y29: 1.2
W30: 5 | X30: 8 | Y30: 1.3
W32: Aggregrated Risk Category
W33: White (Total Weight 0 - 10) | X33: 1
W34: Yellow (Total Weight 11 - 40) | X34: 1.3
I35: Well Plug and Abandonment Cost Estimate | W35: Orange (Total Weight 41 - 60) | X35: 1.6 | Y35: =1.2+((15/20)*0.4) -> 1.5
W36: Red (Total Weight > 60) | X36: 2
I37: Base Case | R37: Benchmark
W38: Regional Benchmark | X38: PA Days
I39: Region Name | K39: =Input!D14 -> Inland | O39: Base P&A Well Days | R39: =Rollup_Master!F6 -> 14.2 | W39: Coastal | X39: 13
W40: Inland | X40: 14
O41: Base Well Cost ($/day) | R41: =Rollup_Master!F8 -> 4000 | W41: Northern | X41: 9
W42: Southern | X42: 20
O43: Base Well Cost per Feet ($/ft) | R43: =Rollup_Master!F10 -> 14
I45: Candidate Well
I47: Well Name | K47: Cabrillo 1 | O47: Well Depth (ft) | R47: =N4 -> 3000
B48: Coastal | C48: Inland | D48: Northern | E48: Southern
A49: Median | B49: 28.08487963 | C49: 14.38510101 | D49: 25.53587922 | E49: 21.6880535 | I49: Well Score Multiplier (WSM) | N49: -----------------------------> | R49: =Rollup_Master!F16 -> 1.4375
A50: Mean | B50: 82.61881437 | C50: 21.13577342 | D50: 39.764755 | E50: 102.1133727
I51: Total Estimated Well Days (EWD) | N51: -----------------------------> | R51: =R39*R49 -> 20.4125
I53: Total Estimated Well Cost (EWC) | N53: -----------------------------> | R53: =R51*R41 -> 81650

Sheet Rollup_Master (hidden)
D1: Well Plug and Abandonment Cost Estimate
B2: Well Plug and Abandonment Cost Estimate
B4: Base Case | F4: Benchmark
B6: Region Name | C6: =Input!D14 -> Inland | E6: P&A Time (days) | F6: =VLOOKUP(C6,B49:C52,2,) -> 14.2
E8: Cost ($/day) | F8: =VLOOKUP(C6,B49:E52,4,) -> 4000
E10: Cost ($/ft) | F10: =VLOOKUP(C6,B49:F52,5,) -> 14
B12: Candidate Well
B14: Well Name | C14: =Input!D23 -> Cabrillo 1 | E14: Well Depth (ft) | F14: ='Well P&A Cost Estimate'!N4 -> 3000
B16: Weighted Factor (WF) Calculations | E16: ='Well P&A Cost Estimate'!N29 -> 45 | F16: ='Multiplier Calc_Master'!H12 -> 1.4375 | H16: =E16/86 -> 0.523255814
B18: Total P&A Days | E18: --------------> | F18: =F6*F16 -> 20.4125
A19: X
B21: Cost Factor (Fixed & Variable)
B22: Well specific cost WF | F22: 1.2
B23: Non-Well specific cost WF | F23: 1.1
B26: Well Cost Rate ($/day) --------> | F26: =F8*F22 -> 4800
B28: Total Well Cost | E28: --------------> | F28: =F18*F8 -> 81650
F30: =F10*F14*F16 -> 60375
B32: Base Case Well Description
B33: Basic onshore well, simple wellbore configurations, no downhole issues, no health, safety & environmental risk, Plug & Abandonment work can be executed with no known well or site complications / risk
A47: Reference Data
B48: Regional Benchmark | C48: PA Days | E48: Cost/Day | F48: Cost/Ft
B49: Coastal | C49: 13.1 | E49: 7553 | F49: 13
B50: Inland | C50: 14.2 | E50: 4000 | F50: 14
B51: Northern | C51: 9.3 | E51: 7900 | F51: 9
B52: Southern | C52: 25.5 | E52: 6000 | F52: 20
B55: Aggregrated Risk Category | E55: Well Depth factor
B56: White (Total Weight 0 - 10) | C56: 1 | E56: 0 | F56: 1
B57: Yellow (Total Weight 11 - 39) | C57: 1.2 | E57: 1000 | F57: 1.1
B58: Orange (Total Weight 40 - 60) | C58: 1.6 | E58: 3000 | F58: 1.2
B59: Red (Total Weight > 60) | C59: 2 | E59: 5000 | F59: 1.3
B62: Well Age
B63: 0-25 | C63: 0
B64: 25-50 | C64: 3
B65: 50 + | C65: 5
B67: Well Depth factor
B68: 0 | C68: 0
B69: 1000 | C69: 4
B70: 3000 | C70: 7
B71: 5000 | C71: 10
B73: Casing String
B74: 2 | C74: 0
B75: 3 | C75: 4
B76: 5 | C76: 8

Sheet Multiplier Calc_Master (hidden)
B2: Range | C2: x | D2: y
B3: Low | C3: High | D3: Max Multiplier | E3: Slope | F3: Intercept | G3: Lower Bound
C4: 0 | D4: 1
B5: 0 | C5: 10 | D5: 1 | G5: 0 | I5: =C6-B6 -> 39
B6: 11 | C6: 50 | D6: 1.5 | E6: =(D6-D5)/(C6-C5) -> 0.0125 | F6: =D5 -> 1 | G6: =C5 -> 10 | I6: =C7-B7 -> 19
B7: 51 | C7: 70 | D7: 2 | E7: =(D7-D6)/(C7-C6) -> 0.025 | F7: =D6 -> 1.5 | G7: =C6 -> 50
C8: 85 | D8: =D7 -> 2
B10: Adjusted Rating calculation
B11: Rating | C11: Maltiplier Max | D11: Slope | E11: Intercept | F11: Lower Bound | G11: Delta | H11: Adjusted Rating
B12: ='Well P&A Cost Estimate'!N29 -> 45 | C12: =IF($B12>=$B$7, $D$7, IF( $B12 >=$B$6, $D$6, $D$5) ) -> 1.5 | D12: =IF($B12>=$B$7, $E$7, IF( $B12 >=$B$6, $E$6, $E$5) ) -> 0.0125 | E12: =IF($B12>=$B$7,$F$7,IF($B12>=$B$6,$F$6,$F$5)) -> 1 | F12: =IF($B12>=$B$7, $G$7, IF( $B12 >=$B$6, $G$6, $G$5) ) -> 10 | G12: =B12-F12 -> 35 | H12: =IF($B12<B$6, $D$5, IF($B12 >= $C$7, $D$7, $G12*$D12+$E12)) -> 1.4375
B14: Well Score | C14: Multiplier | E14: Slope | F14: Intercepth | G14: LB | H14: Delta
B15: 0 | C15: =IF(B15<$B$6, $D$5, IF(B15 >= $C$7, $D$7, H15*E15+F15)) -> 1 | E15: =IF($B15>=$B$7,$E$7,IF($B15>=$B$6,$E$6,$E$5)) -> 0 | F15: =IF($B15>=$B$7,$F$7,IF($B15>=$B$6,$F$6,$F$5)) -> 0 | G15: =IF($B15>=$B$7,$G$7,IF($B15>=$B$6,$G$6,$G$5)) -> 0 | H15: =B15-G15 -> 0
B16: =B15+2 -> 2 | C16: 1 | E16: =IF($B16>=$B$7,$E$7,IF($B16>=$B$6,$E$6,$E$5)) -> 0 | F16: =IF($B16>=$B$7,$F$7,IF($B16>=$B$6,$F$6,$F$5)) -> 0 | G16: =IF($B16>=$B$7,$G$7,IF($B16>=$B$6,$G$6,$G$5)) -> 0 | H16: =B16-G16 -> 2
B17: =B16+2 -> 4 | C17: 1 | E17: 0 | F17: 0 | G17: 0 | H17: 4
B18: 6 | C18: 1 | E18: 0 | F18: 0 | G18: 0 | H18: 6
B19: 8 | C19: 1 | E19: 0 | F19: 0 | G19: 0 | H19: 8
B20: 10 | C20: 1 | E20: 0 | F20: 0 | G20: 0 | H20: 10
B21: 12 | C21: 1.025 | E21: 0.0125 | F21: 1 | G21: 10 | H21: 2
B22: 14 | C22: 1.05 | E22: 0.0125 | F22: 1 | G22: 10 | H22: 4
B23: 16 | C23: 1.075 | E23: 0.0125 | F23: 1 | G23: 10 | H23: 6
B24: 18 | C24: 1.1 | E24: 0.0125 | F24: 1 | G24: 10 | H24: 8
B25: 20 | C25: 1.125 | E25: 0.0125 | F25: 1 | G25: 10 | H25: 10
B26: 22 | C26: 1.15 | E26: 0.0125 | F26: 1 | G26: 10 | H26: 12
B27: 24 | C27: 1.175 | E27: 0.0125 | F27: 1 | G27: 10 | H27: 14
B28: 26 | C28: 1.2 | E28: 0.0125 | F28: 1 | G28: 10 | H28: 16
B29: 28 | C29: 1.225 | E29: 0.0125 | F29: 1 | G29: 10 | H29: 18
B30: 30 | C30: 1.25 | E30: 0.0125 | F30: 1 | G30: 10 | H30: 20
B31: 32 | C31: 1.275 | E31: 0.0125 | F31: 1 | G31: 10 | H31: 22
B32: 34 | C32: 1.3 | E32: 0.0125 | F32: 1 | G32: 10 | H32: 24
B33: 36 | C33: 1.325 | E33: 0.0125 | F33: 1 | G33: 10 | H33: 26
B34: 38 | C34: 1.35 | E34: 0.0125 | F34: 1 | G34: 10 | H34: 28
B35: 40 | C35: 1.375 | E35: 0.0125 | F35: 1 | G35: 10 | H35: 30
B36: 42 | C36: 1.4 | E36: 0.0125 | F36: 1 | G36: 10 | H36: 32
B37: 44 | C37: 1.425 | E37: 0.0125 | F37: 1 | G37: 10 | H37: 34
B38: 46 | C38: 1.45 | E38: 0.0125 | F38: 1 | G38: 10 | H38: 36
B39: 48 | C39: 1.475 | E39: 0.0125 | F39: 1 | G39: 10 | H39: 38
B40: 50 | C40: 1.5 | E40: 0.0125 | F40: 1 | G40: 10 | H40: 40
B41: 52 | C41: 1.55 | E41: 0.025 | F41: 1.5 | G41: 50 | H41: 2
B42: 54 | C42: 1.6 | E42: 0.025 | F42: 1.5 | G42: 50 | H42: 4
B43: 56 | C43: 1.65 | E43: 0.025 | F43: 1.5 | G43: 50 | H43: 6
B44: 58 | C44: 1.7 | E44: 0.025 | F44: 1.5 | G44: 50 | H44: 8
B45: 60 | C45: 1.75 | E45: 0.025 | F45: 1.5 | G45: 50 | H45: 10
B46: 62 | C46: 1.8 | E46: 0.025 | F46: 1.5 | G46: 50 | H46: 12
B47: 64 | C47: 1.85 | E47: 0.025 | F47: 1.5 | G47: 50 | H47: 14
B48: 66 | C48: 1.9 | E48: 0.025 | F48: 1.5 | G48: 50 | H48: 16
B49: 68 | C49: 1.95 | E49: 0.025 | F49: 1.5 | G49: 50 | H49: 18
B50: 70 | C50: 2 | E50: 0.025 | F50: 1.5 | G50: 50 | H50: 20
B51: 72 | C51: 2 | E51: 0.025 | F51: 1.5 | G51: 50 | H51: 22
B52: 74 | C52: 2 | E52: 0.025 | F52: 1.5 | G52: 50 | H52: 24
B53: 76 | C53: 2 | E53: 0.025 | F53: 1.5 | G53: 50 | H53: 26
B54: 78 | C54: 2 | E54: 0.025 | F54: 1.5 | G54: 50 | H54: 28
B55: 80 | C55: 2 | E55: 0.025 | F55: 1.5 | G55: 50 | H55: 30
B56: 82 | C56: 2 | E56: 0.025 | F56: 1.5 | G56: 50 | H56: 32
B57: 84 | C57: 2 | E57: 0.025 | F57: 1.5 | G57: 50 | H57: 34
B58: 86 | C58: 2 | E58: 0.025 | F58: 1.5 | G58: 50 | H58: 36

Sheet Multi_Well_Estimation
M3: Well Plug and Abandonment Cost Estimation
A4: ` | AK4: Batch Template
AL7: Well Factors | AU7: Risk Factors
J9: Do not fill | N9: Computed Fields - DO NOT FILL OUT | AG9: Computed Fields - DO NOT FILL OUT | AP9: Well Location | AU9: Well Conditions | BA9: Other Enviromental / Safety Concerns
A10: S/N | B10: Region | C10: Operator / Company | D10: Field | E10: Lease | F10: Well Name | G10: API # | H10: Spud Date | I10: P&A Start Date | J10: P&A Year | K10: P&A End Date | L10: total depth | N10: Base Daily Well Cost | O10: Well Abandonment Cost | P10: Facilities Removal Cost | Q10: T&M Cost | R10: Total Cost | S10: Base Well Days | T10: P&A Days | U10: P&A Days/1000 ft | V10: $/ft (original) | W10: $/ft ™ | X10: Total Cost per foot | Y10: Total Cost / Day | Z10: CalEPA EnviroScreen Score | AA10: Other relevant information - Comment | AB10: API - old | AC10: Lat, Long | AD10: LAT | AE10: Long | AF10: Well Age | AG10: Age Range | AH10: Well File | AI10: Wellbore Info | AJ10: # of Csg | AL10: Age Factor | AM10: Well Depth Factor | AN10: Casing Factor | AP10: Critical well - located within city limit or near an urban area | AQ10: Well has an environmentally sensitive wellhead | AR10: Located in an area of known geologic hazard, such as subsidence, landslides, or a history of damage to wells in the area from seismicity | AS10: Well has surface obstacles preventing access e.g. buildings or structures, surface-use activities, irrigation systems, roads, terrain | AU10: Unknown - no public records available | AV10: Well has pressure in the casing or tubing at the surface | AW10: Well has inadequate casing / tubing intergrity | AX10: Well contains junk or other downhole issues such as stuck rods, packer, scales in casing, or fish that require special tools for intervention. | AY10: Well fluid level is above the base of freshwater or USDW | BA10: Risk of Spill | BB10: Risk to marine or agriculture | BC10: Presence of H2S or CO2 production or any envromental conditions that potentially poses a threat to life, health, or property | BE10: Simulated Score | BF10: Simulated Score Multiplier factor | BG10: Simulated Well Days | BH10: Simulated Well Cost
AL11: 5 | AM11: 10 | AN11: 8 | AP11: 10 | AQ11: 7 | AR11: 7 | AS11: 5 | AU11: 25 | AV11: 4 | AW11: 6 | AX11: 9 | AY11: 4 | BA11: 5 | BC11: 5
A12: 1 | B12: Inland | C12: ABC-XYZ | D12: Santa Maria Valley | E12: Acquistapace | F12: "Ophelia" 1 | G12: 011-20148 | H12: 1980-05-03 | I12: 2018-07-23 | J12: =YEAR(K12) -> 2018 | K12: 2018-08-04 | L12: 1000 | N12: =VLOOKUP(B12,Rollup_Master!$B$49:$E$52,4) -> 4000 | Q12: 57434.61 | R12: =SUM(N12:Q12) -> 61434.61 | S12: =VLOOKUP(B12,Rollup_Master!$B$49:$C$52,2) -> 14.2 | T12: =K12-I12 -> 12 | U12: =(T12/L12)*1000 -> 12 | V12: =IFERROR(N12/L12,"") -> 4 | W12: =IFERROR(Q12/L12,"") -> 57.43461 | X12: =IFERROR(R12/L12,"") -> 61.43461 | Y12: =R12/T12 -> 5119.550833 | AA12: Parted tubing, recovered tubing fish and packer | AB12: =_xlfn.CONCAT(LEFT(G12,3),RIGHT(G12,5)) -> 01120148 | AC12: (39.06291580, -121.89774323) | AD12: 34.87196732 | AE12: -120.351326 | AF12: =IFERROR((I12-H12)/365,"") -> 38.24657534 | AG12: =IF(AF12>50,"50+",IF(AND(AF12<50, AF12>25),"25-50",IF(AF12<25,"0-25"))) -> 25-50 | AH12: =HYPERLINK((_xlfn.CONCAT("ftp://ftp.consrv.ca.gov/pub/oil/WellRecord/",LEFT(G12,3),"/",AB12)),"Well File") -> Well File | AJ12: 2 | AL12: =VLOOKUP(AG12,Rollup_Master!$B$63:$C$65,2) -> 3 | AM12: =IF(L12<1001,Rollup_Master!$C$68,IF(AND(L12>1000, L12<3001),Rollup_Master!$C$69, IF(AND(L12>3000, L12<5001),Rollup_Master!$C$70,Rollup_Master!$C$71))) -> 0 | AN12: =IF(AJ12<3,Rollup_Master!$C$74,IF(AND(AJ12>2, AJ12<5),Rollup_Master!$C$75,Rollup_Master!$C$76)) -> 0 | AP12: N | AQ12: N | AR12: N | AS12: N | AU12: Y | AV12: Y | AW12: Y | AX12: N | AY12: N | BA12: N | BC12: N | BE12: =SUMIF(AP12:BC12,"Y",$AP$11:$BC$11)+SUM(AL12:AN12) -> 38 | BF12: 1.225 | BG12: =BF12*S12-1 -> 16.395 | BH12: =BG12*N12 -> 65580
A13: 2 | B13: Inland | C13: ABC-XYZ | D13: Santa Maria Valley | E13: Acquistapace | F13: "Yellow Rose" 1 | G13: 011-20710 | H13: 2004-12-04 | I13: 2015-02-10 | J13: 2015 | K13: 2015-02-18 | L13: 7322 | N13: =VLOOKUP(B13,Rollup_Master!$B$49:$E$52,4) -> 4000 | Q13: 57435.61 | R13: 61435.61 | S13: =VLOOKUP(B13,Rollup_Master!$B$49:$C$52,2) -> 14.2 | T13: 8 | U13: 1.092597651 | V13: 0.5462988255 | W13: 7.844251571 | X13: 8.390550396 | Y13: 7679.45125 | AA13: Parted tubing, recovered tubing fish and packer | AB13: 01120710 | AC13: (39.16454315, -122.00582123) | AD13: 34.87102127 | AE13: -120.3487473 | AF13: =IFERROR((I13-H13)/365,"") -> 10.19178082 | AG13: =IF(AF13>50,"50+",IF(AND(AF13<50, AF13>25),"25-50",IF(AF13<25,"0-25"))) -> 0-25 | AH13: Well File | AJ13: 5 | AL13: =VLOOKUP(AG13,Rollup_Master!$B$63:$C$65,2) -> 0 | AM13: =IF(L13<1001,Rollup_Master!$C$68,IF(AND(L13>1000, L13<3001),Rollup_Master!$C$69, IF(AND(L13>3000, L13<5001),Rollup_Master!$C$70,Rollup_Master!$C$71))) -> 10 | AN13: =IF(AJ13<3,Rollup_Master!$C$74,IF(AND(AJ13>2, AJ13<5),Rollup_Master!$C$75,Rollup_Master!$C$76)) -> 8 | AP13: Y | AQ13: Y | AR13: N | AS13: N | AU13: Y | AV13: N | AW13: N | AX13: Y | AY13: Y | BA13: N | BB13: N | BC13: Y | BE13: =SUMIF(AP13:BC13,"Y",$AP$11:$BC$11)+SUM(AL13:AN13) -> 78 | BF13: 1.975 | BG13: =BF13*S13 -> 28.045 | BH13: 112180
A14: 3 | B14: Inland | C14: ABC-XYZ | D14: Santa Maria Valley | E14: Bettiga | F14: "Transcmerica-Maggiora" 2 | G14: 013-20020 | H14: 1968-03-20 | I14: 2013-07-09 | J14: 2013 | K14: 2013-07-26 | L14: 3911 | N14: =VLOOKUP(B14,Rollup_Master!$B$49:$E$52,4) -> 4000 | Q14: 57436.61 | R14: 61436.61 | S14: =VLOOKUP(B14,Rollup_Master!$B$49:$C$52,2) -> 14.2 | T14: 17 | U14: 4.346714395 | V14: 1.022756328 | W14: 14.68591409 | X14: 15.70867042 | Y14: 3613.918235 | AA14: This whole contract was squirlley. The WA Hamell was done out of hand without a bid so I cannont atest to the efficacy of the numbers, but they're close. | AB14: 01320020 | AC14: (37.94747162, -121.73941803) | AD14: 34.93188095 | AE14: -120.4038315 | AF14: 45.33424658 | AG14: 25-50 | AH14: Well File | AJ14: 4 | AL14: =VLOOKUP(AG14,Rollup_Master!$B$63:$C$65,2) -> 3 | AM14: =IF(L14<1001,Rollup_Master!$C$68,IF(AND(L14>1000, L14<3001),Rollup_Master!$C$69, IF(AND(L14>3000, L14<5001),Rollup_Master!$C$70,Rollup_Master!$C$71))) -> 7 | AN14: =IF(AJ14<3,Rollup_Master!$C$74,IF(AND(AJ14>2, AJ14<5),Rollup_Master!$C$75,Rollup_Master!$C$76)) -> 4 | AP14: Y | AQ14: =AP14 -> Y | AR14: N | AS14: N | AU14: N | AV14: N | AW14: Y | AX14: N | AY14: N | BA14: N | BB14: N | BC14: N | BE14: 37 | BF14: 1.3375 | BG14: 17.9925 | BH14: 71970
A15: 4 | B15: Inland | C15: ABC-XYZ | D15: Santa Maria Valley | E15: Bettiga | F15: "Transcmerica-Maggiora" 3 | G15: 013-20021 | H15: 1948-03-20 | I15: 2013-07-09 | J15: =YEAR(K15) -> 2017 | K15: 2017-08-29 | L15: 4500 | N15: =VLOOKUP(B15,Rollup_Master!$B$49:$E$52,4) -> 4000 | Q15: 57437.61 | R15: =SUM(N15:Q15) -> 61437.61 | S15: =VLOOKUP(B15,Rollup_Master!$B$49:$C$52,2) -> 14.2 | T15: =K15-I15 -> 1512 | U15: =(T15/L15)*1000 -> 336 | V15: =IFERROR(N15/L15,"") -> 0.8888888889 | W15: =IFERROR(Q15/L15,"") -> 12.76391333 | X15: =IFERROR(R15/L15,"") -> 13.65280222 | Y15: =R15/T15 -> 40.63333995 | AA15: This whole contract was squirlley. The WA Hamell was done out of hand without a bid so I cannont atest to the efficacy of the numbers, but they're close. | AB15: =_xlfn.CONCAT(LEFT(G15,3),RIGHT(G15,5)) -> 01320021 | AC15: (37.94747162, -121.73941803) | AD15: 34.93188095 | AE15: -120.4038315 | AF15: =IFERROR((I15-H15)/365,"") -> 65.34794521 | AG15: =IF(AF15>50,"50+",IF(AND(AF15<50, AF15>25),"25-50",IF(AF15<25,"0-25"))) -> 50+ | AH15: =HYPERLINK((_xlfn.CONCAT("ftp://ftp.consrv.ca.gov/pub/oil/WellRecord/",LEFT(G15,3),"/",AB15)),"Well File") -> Well File | AJ15: 5 | AL15: =VLOOKUP(AG15,Rollup_Master!$B$63:$C$65,2) -> 5 | AM15: =IF(L15<1001,Rollup_Master!$C$68,IF(AND(L15>1000, L15<3001),Rollup_Master!$C$69, IF(AND(L15>3000, L15<5001),Rollup_Master!$C$70,Rollup_Master!$C$71))) -> 7 | AN15: =IF(AJ15<3,Rollup_Master!$C$74,IF(AND(AJ15>2, AJ15<5),Rollup_Master!$C$75,Rollup_Master!$C$76)) -> 8 | AP15: Y | AQ15: =AP15 -> Y | AR15: N | AS15: N | AU15: N | AV15: N | AW15: Y | AX15: N | AY15: N | BA15: N | BB15: N | BC15: N | BE15: =SUMIF(AP15:BC15,"Y",$AP$11:$BC$11)+SUM(AL15:AN15) -> 43 | BF15: 1.4125 | BG15: =BF15*S15-1 -> 19.0575 | BH15: =BG15*N15 -> 76230
N16: =VLOOKUP(B16,Rollup_Master!$B$49:$E$52,4) -> 
N17: =VLOOKUP(B17,Rollup_Master!$B$49:$E$52,4) -> 
A27: End of data - Insert new row above to add new well

Sheet Fac. Dec. & Site Rem. Estimate
G4: Production Facility Decommissioning & Site Remediation Cost Estimation
B8: Operator Name: | D8: Generic Oil Company
B9: Operator Code: | D9: X1234
B10: Lease Name: | D10: Lease Name
B11: Facility Type: | D11: Setting, Sump, Pipeline, etc
B12: Facility Location: | D12: Coordinates
B13: Subject ID: | D13: 12345678
B14: Contact Name: | D14: Operator Contact
B15: Contact Email Address: | D15: Operator Contact Email
B16: Contact Phone Number: | D16: 123-456-7890
B17: Date: | D17: =TODAY() -> 2022-04-01
B19: Cost Element | D19: Total Cost ($) | E19: Quantity | F19: Unit | G19: Unit Cost ($) | H19: % of Total Cost | I19: Description
B20: Production Facility Decommissioning
C21: Tank (>10,001 bbl) | D21: =IFERROR((E21*G21),"") -> 159803.7691 | E21: 1 | F21: EA | G21: 159803.7691 | H21: =IFERROR((D21/$D$50),"") -> 0.1871105852 | I21: Remove and dispose of tanks: wash, produced water, storage.
C22: Tank (5,001 - 10,000 bbl) or Urban | D22: =IFERROR((E22*G22),"") -> 104563.8799 | E22: 1 | F22: EA | G22: 104563.8799 | H22: 0.12243146 | I22: Remove and dispose of tanks: wash, produced water, storage.
C23: Tank (2,500 - 5,000 bbl) | D23: 65311.56387 | E23: 1 | F23: EA | G23: 65311.56387 | H23: 0.07647181918 | I23: Remove and dispose of tanks: wash, produced water, storage.
C24: Tank (<2,499 bbl) | D24: =IFERROR((E24*G24),"") -> 19148.51476 | E24: 1 | F24: EA | G24: 19148.51476 | H24: 0.0224205588 | I24: Remove and dispose of tanks: wash, produced water, storage.
C25: Vessel | D25: =IFERROR((E25*G25),"") -> 12620.916 | E25: 1 | F25: EA | G25: 12620.916 | H25: 0.01477754243 | I25: Remove and dispose of vessels: separators, free-water knockout, heater-treaters.
C26: Above-Ground Pipelines | D26: =IFERROR((E26*G26),"") -> 22284.07687 | E26: 750 | F26: LF | G26: 29.7121025 | H26: 0.0260919169 | I26: Remove and dispose of pipelines: transmission, flowline, injection, gathering lines, vent, process piping.
C27: Buried Pipelines | D27: 6028.799941 | E27: 500 | F27: LF | G27: 12.05759988 | H27: 0.007058984224 | I27: Any remaining buried pipelines must be purged, capped, and filled with an inert fluid.
C28: Electrical Vaults & Equipment | D28: 3896.121212 | E28: 10 | F28: TON | G28: 389.6121212 | H28: 0.004561879385 | I28: Remove and dispose of electrical equipment: poles, transformers, switchgear, cables, wires, conduit, switches, monitoring equipment.
C29: Asphalt & Concrete | D29: 9720.671337 | E29: 1000 | F29: CF | G29: 9.720671337 | H29: 0.01138171216 | I29: Remove and dispose of concrete pads and asphalt.
C30: Pumps & Compressors | D30: 4385.789598 | E30: 1 | F30: EA | G30: 4385.789598 | H30: 0.00513522092 | I30: Remove and dispose of pumps and compressors.
C31: Buildings | D31: 30445.925 | E31: 1000 | F31: SF | G31: 30.445925 | H31: 0.03564843855 | I31: Remove and dispose of buildings, walls, and supporting equipment.
C32: Subtotal | D32: =SUM(D21:D31) -> 438210.0276 | H32: =SUM(H21:H31) -> 0.5130901177
B34: Site Remediation
C35: Tank (>10,001 bbl) | D35: =IFERROR((E35*G35),"") -> 120308.943 | E35: =IF(E21<=0,"",E21) -> 1 | F35: EA | G35: 120308.943 | H35: =IFERROR((D35/$D$50),"") -> 0.140866995 | I35: Site remediation for a tank including contaminated soil excavation & disposal, refuse removal, secondary containment removal, and site restoration.
C36: Tank (5,001 - 10,000 bbl) or Urban | D36: =IFERROR((E36*G36),"") -> 54344.75283 | E36: =IF(E22<=0,"",E22) -> 1 | F36: EA | G36: 54344.75283 | H36: 0.06363103049 | I36: Site remediation for a tank including contaminated soil excavation & disposal, refuse removal, secondary containment removal, and site restoration.
C37: Tank (2,500 - 5,000 bbl) | D37: 21450.37606 | E37: =IF(E23<=0,"",E23) -> 1 | F37: EA | G37: 21450.37606 | H37: 0.02511575565 | I37: Site remediation for a tank including contaminated soil excavation & disposal, refuse removal, secondary containment removal, and site restoration.
C38: Tank (<2,499 bbl) | D38: 6549.223385 | E38: =IF(E24<=0,"",E24) -> 1 | F38: EA | G38: 6549.223385 | H38: 0.007668336154 | I38: Site remediation for a tank including contaminated soil excavation & disposal, refuse removal, secondary containment removal, and site restoration.
C39: Vessel | D39: =IFERROR((E39*G39),"") -> 6549.223385 | E39: =IF(E25<=0,"",E25) -> 1 | F39: EA | G39: 6549.223385 | H39: 0.007668336154 | I39: Site remediation for a vessel including contaminated soil excavation & disposal, refuse removal, secondary containment removal, and site restoration.
C40: Sumps & Auxiliary Holes | D40: =IFERROR((E40*G40),"") -> 3864.661087 | E40: 1000 | F40: CF | G40: 3.864661087 | H40: 0.004525043443 | I40: Site remediation for sumps and auxiliary holes including contaminated soil excavation & disposal, backfilling, compaction, slope collapse mitigation, and site restoration.
C41: Refuse Removal | D41: 13710 | E41: 100 | F41: CY | G41: 137.1 | H41: 0.01605272602 | I41: Remove and dispose of all refuse, trash, debris, construction materials, production pads, piers, fencing.
C42: Access Road Removal & Restoration | D42: 2247.59651 | E42: 1000 | F42: CF | G42: 2.24759651 | H42: 0.002631659445 | I42: Access roads that create a hazard to public safety, property or causes interference with natural drainage shall be restored to as near a natural state as practicable.
C43: Subtotal | D43: =SUM(D35:D42) -> 229024.7763 | H43: =SUM(H35:H42) -> 0.2681598823
B45: Contingency | D45: =SUM(D32,D43)*E45 -> 66723.48039 | E45: ='Contingency Calculation'!F20 -> 10% | H45: =IFERROR((D45/$D$50),"") -> 0.078125 | I45: Contingency calculated from the Contingency tab.
B46: Permitting & Regulatory Compliance | D46: =SUM(D32,D43)*E46 -> 33361.74019 | E46: 0.05 | H46: =IFERROR((D46/$D$50),"") -> 0.0390625 | I46: Costs to develop and obtain permits to perform the decommissioning and site remediation scope of work.
B47: Mobilization & Demobilization | D47: =SUM(D32,D43)*E47 -> 33361.74019 | E47: 0.05 | H47: 0.0390625 | I47: Mobilization and Demobilization of equipment and crews to start and finish the project.
B48: Project Management & Engineering | D48: =SUM(D32,D43)*E48 -> 53378.78431 | E48: 0.08 | H48: 0.0625 | I48: Costs for Project Management & Engineering
B50: TOTAL COST ESTIMATE | D50: =D32+D43+D45+D46+D47+D48 -> 854060.549 | H50: =IFERROR((H32+H43+H45+H46+H47+H48),"") -> 1
B52: Comments | J52: Acronym | K52: Unit of Measure | N52: WellSTAR Input
B53: Please provide additional scope of work information here. | J53: CF | K53: Cubic Foot | M53: Facilities Decommissioning | P53: =D32+(D32*E45)+(D32*E46)+(D32*E47)+(D32*E48) -> 560908.8353 | Q53: =P53 -> 560908.8353
J54: EA | K54: Each | M54: Site Remediation | P54: =D43+(D43*E45)+(D43*E46)+(D43*E47)+(D43*E48) -> 293151.7137 | Q54: =P54 -> 293151.7137
J55: LF | K55: Linear Foot | M55: Total | P55: =P53+P54 -> 854060.549 | Q55: =Q53+Q54 -> 854060.549
J56: LS | K56: Lump Sum
J57: TON | K57: Ton
J58: CY | K58: Cubic Yard
J59: SF | K59: Square Foot
C61: Default Assumptions Per Equipment
B62: Facilities Decommissioning | E62: Unit | F62: Tank | G62: Well | H62: Vessel | I62: Comments
C63: Above-Ground Pipelines | E63: LF | F63: 150 | G63: 100 | H63: =F63 -> 150 | I63: 150 feet per tank & vessel, 100 feet per well
C64: Buried Pipelines | E64: LF | F64: 100 | G64: 50 | H64: =F64 -> 100 | I64: 100 feet per tank & vessel, 50 feet per well
C65: Electrical Vaults & Equipment | E65: TON | F65: 2 | G65: =F65 -> 2 | H65: =F65 -> 2 | I65: 2 tons of electrical equipment per tank, well, vessel
C66: Asphalt & Concrete Per Pump | E66: CF | G66: =20*5*3 -> 300 | I66: 20 x 5 x 3 ft concrete pad per pumping unit
B68: Site Remediation
C69: Contaminated Soil Excavation Per Well | E69: CF | G69: =8*8*6 -> 384 | I69: 8 x 8 x 6 ft of contaminated soil per well
C70: Contaminated Soil Excavation Per Vessel | E70: CF | H70: =F71 -> 441 | I70: 21 x 21 x 1 ft of contaminated soil per vessel
C71: Contaminated Soil Excavation Per Tank (<2.5k bbl) | E71: CF | F71: =21*21*1 -> 441 | I71: 21 x 21 x 1 ft of contaminated soil per tank
C72: Contaminated Soil Excavation Per Tank (2.5k-5k bbl) | E72: CF | F72: =30*30*2 -> 1800 | I72: 30 x 30 x 2 ft of contaminated soil per tank
C73: Contaminated Soil Excavation Per Tank (5k-10k bbl) | E73: CF | F73: =40*40*3 -> 4800 | I73: 40 x 40 x 3 ft of contaminated soil per tank
C74: Contaminated Soil Excavation Per Tank (>10k bbl) | E74: CF | F74: =52*52*4 -> 10816 | I74: 52 x 52 x 4 ft of contaminated soil per tank
C75: Site Restoration Per Well | E75: CF | G75: =G82+G69 -> 2384 | I75: Sum of access road & contaminated soil volumes
C76: Site Restoration Per Vessel | E76: CF | H76: 441 | I76: Contaminated soil volume
C77: Site Restoration Per Tank (<2.5k bbl) | E77: CF | F77: =F71 -> 441 | I77: Contaminated soil volume
C78: Site Restoration Per Tank (2.5k-5k bbl) | E78: CF | F78: =F72 -> 1800 | I78: Contaminated soil volume
C79: Site Restoration Per Tank (5k-10k bbl) | E79: CF | F79: =F73 -> 4800 | I79: Contaminated soil volume
C80: Site Restoration Per Tank (>10k bbl) | E80: CF | F80: =F74 -> 10816 | I80: Contaminated soil volume
C81: Waste Removal | E81: CY | F81: 10 | G81: =F81 -> 10 | H81: =F81 -> 10 | I81: 10 cubic yards of waste per tank, well, vessel
C82: Access Road | E82: CF | G82: =100*20*1 -> 2000 | I82: 100 x 20 x 1 ft or 200 x 10 x 1 ft of access road per well

Sheet Fac. Dec. & Site Rem. Batch
L3: Production Facility Decommissioning & Site Remediation Cost Estimation
P4: Batch Template
B7: Operator Name: | D7: Generic Oil Company | S7: Contact Email Address: | W7: Operator Contact Email
B8: Operator Code: | D8: X1234 | S8: Contact Phone Number: | W8: Operator Contact Phone
B9: Contact Name: | D9: Operator Contact Name | S9: Date: | W9: Date
C11: Production Facility Information | L11: Production Facility Decommissioning | V11: Production Facility Site Remediation | AC11: Other Project Components | AI11: WellSTAR Input
B12: Field | C12: Lease | D12: Facility Type | E12: Subject ID | G12: Tanks (>10,001 bbl) | H12: Tanks (5,001 - 10,000 bbl) or Urban | I12: Tanks (2,500 - 5,000 bbl) | J12: Tanks (<2,499 bbl) | K12: Vessels | L12: Above-Ground Pipelines | M12: Buried Pipelines | N12: Electrical Vaults & Equipment | O12: Asphalt & Concrete | P12: Pumps & Compressors | Q12: Buildings | S12: Tanks (>10,001 bbl) | T12: Tanks (5,001 - 10,000 bbl) or Urban | U12: Tanks (2,500 - 5,000 bbl) | V12: Tanks (<2,499 bbl) | W12: Vessels | X12: Sumps & Auxiliary Holes | Y12: Refuse Removal | Z12: Access Roads Removal & Restoration | AB12: Contingency | AC12: Permitting & Regulatory Compliance | AD12: Mobilization & Demobilization | AE12: Project Management & Engineering | AG12: Facilities Decommissioning Total Cost | AH12: Site Remediation Total Cost | AI12: Facilities Decommissioning Total Cost | AJ12: Site Remediation Total Cost | AK12: Total Cost
E13: Unit Cost | G13: 159803.7691 | H13: 104563.8799 | I13: 65311.56387 | J13: 19148.51476 | K13: 12620.916 | L13: 29.7121025 | M13: 12.05759988 | N13: 389.6121212 | O13: 9.720671337 | P13: 4385.789598 | Q13: 30.445925 | S13: 120308.943 | T13: 54344.75283 | U13: 21450.37606 | V13: 6549.223385 | W13: 6549.223385 | X13: 3.864661087 | Y13: 137.1 | Z13: 2.24759651
E14: Unit | G14: EA | H14: EA | I14: EA | J14: EA | K14: EA | L14: LF | M14: LF | N14: TON | O14: CF | P14: EA | Q14: SF | S14: EA | T14: EA | U14: EA | V14: EA | W14: EA | X14: CF | Y14: CY | Z14: CF
B15: Field Name | C15: Lease Name | D15: Setting | E15: 12345678 | G15: 1 | H15: 1 | I15: 1 | J15: 1 | K15: 1 | L15: 750 | M15: 500 | N15: 10 | O15: 1000 | P15: 1 | Q15: 1000 | S15: =G15 -> 1 | T15: =H15 -> 1 | U15: =I15 -> 1 | V15: =J15 -> 1 | W15: =K15 -> 1 | X15: 1000 | Y15: 100 | Z15: 1000 | AB15: 0.1 | AC15: 0.05 | AD15: 0.05 | AE15: 0.08 | AG15: =((G15*$G$13)+(H15*$H$13)+(I15*$I$13)+(J15*$J$13)+(K15*$K$13)+(L15*$L$13)+(M15*$M$13)+(N15*$N$13)+(O15*$O$13)+(P15*$P$13)+(Q15*$Q$13))+(((G15*$G$13)+(H15*$H$13)+(I15*$I$13)+(J15*$J$13)+(K15*$K$13)+(L15*$L$13)+(M15*$M$13)+(N15*$N$13)+(O15*$O$13)+(P15*$P$13)+(Q15*$Q$13))*AB15)+(((G15*$G$13)+(H15*$H$13)+(I15*$I$13)+(J15*$J$13)+(K15*$K$13)+(L15*$L$13)+(M15*$M$13)+(N15*$N$13)+(O15*$O$13)+(P15*$P$13)+(Q15*$Q$13))*AC15)+(((G15*$G$13)+(H15*$H$13)+(I15*$I$13)+(J15*$J$13)+(K15*$K$13)+(L15*$L$13)+(M15*$M$13)+(N15*$N$13)+(O15*$O$13)+(P15*$P$13)+(Q15*$Q$13))*AD15)+(((G15*$G$13)+(H15*$H$13)+(I15*$I$13)+(J15*$J$13)+(K15*$K$13)+(L15*$L$13)+(M15*$M$13)+(N15*$N$13)+(O15*$O$13)+(P15*$P$13)+(Q15*$Q$13))*AE15) -> 560908.8353 | AH15: =((S15*$S$13)+(T15*$T$13)+(U15*$U$13)+(V15*$V$13)+(W15*$W$13)+(X15*$X$13)+(Y15*$Y$13)+(Z15*$Z$13))+(((S15*$S$13)+(T15*$T$13)+(U15*$U$13)+(V15*$V$13)+(W15*$W$13)+(X15*$X$13)+(Y15*$Y$13)+(Z15*$Z$13))*AB15)+(((S15*$S$13)+(T15*$T$13)+(U15*$U$13)+(V15*$V$13)+(W15*$W$13)+(X15*$X$13)+(Y15*$Y$13)+(Z15*$Z$13))*AC15)+(((S15*$S$13)+(T15*$T$13)+(U15*$U$13)+(V15*$V$13)+(W15*$W$13)+(X15*$X$13)+(Y15*$Y$13)+(Z15*$Z$13))*AD15)+(((S15*$S$13)+(T15*$T$13)+(U15*$U$13)+(V15*$V$13)+(W15*$W$13)+(X15*$X$13)+(Y15*$Y$13)+(Z15*$Z$13))*AE15) -> 293151.7137 | AI15: =ROUND(AG15,0) -> 560909 | AJ15: =ROUND(AH15,0) -> 293152 | AK15: =ROUND(SUM(AI15:AJ15),0) -> 854061
B16: Field Name | C16: Lease Name | D16: Setting | E16: 12345678 | G16: 1 | H16: 1 | I16: 1 | J16: 1 | K16: 1 | L16: 750 | M16: 500 | N16: 10 | O16: 1000 | P16: 1 | Q16: 1000 | S16: 1 | T16: 1 | U16: 1 | V16: 1 | W16: 1 | X16: 1000 | Y16: 100 | Z16: 1000 | AB16: 0.2 | AC16: 0.05 | AD16: 0.05 | AE16: 0.08 | AG16: =((G16*$G$13)+(H16*$H$13)+(I16*$I$13)+(J16*$J$13)+(K16*$K$13)+(L16*$L$13)+(M16*$M$13)+(N16*$N$13)+(O16*$O$13)+(P16*$P$13)+(Q16*$Q$13))+(((G16*$G$13)+(H16*$H$13)+(I16*$I$13)+(J16*$J$13)+(K16*$K$13)+(L16*$L$13)+(M16*$M$13)+(N16*$N$13)+(O16*$O$13)+(P16*$P$13)+(Q16*$Q$13))*AB16)+(((G16*$G$13)+(H16*$H$13)+(I16*$I$13)+(J16*$J$13)+(K16*$K$13)+(L16*$L$13)+(M16*$M$13)+(N16*$N$13)+(O16*$O$13)+(P16*$P$13)+(Q16*$Q$13))*AC16)+(((G16*$G$13)+(H16*$H$13)+(I16*$I$13)+(J16*$J$13)+(K16*$K$13)+(L16*$L$13)+(M16*$M$13)+(N16*$N$13)+(O16*$O$13)+(P16*$P$13)+(Q16*$Q$13))*AD16)+(((G16*$G$13)+(H16*$H$13)+(I16*$I$13)+(J16*$J$13)+(K16*$K$13)+(L16*$L$13)+(M16*$M$13)+(N16*$N$13)+(O16*$O$13)+(P16*$P$13)+(Q16*$Q$13))*AE16) -> 604729.8381 | AH16: =((S16*$S$13)+(T16*$T$13)+(U16*$U$13)+(V16*$V$13)+(W16*$W$13)+(X16*$X$13)+(Y16*$Y$13)+(Z16*$Z$13))+(((S16*$S$13)+(T16*$T$13)+(U16*$U$13)+(V16*$V$13)+(W16*$W$13)+(X16*$X$13)+(Y16*$Y$13)+(Z16*$Z$13))*AB16)+(((S16*$S$13)+(T16*$T$13)+(U16*$U$13)+(V16*$V$13)+(W16*$W$13)+(X16*$X$13)+(Y16*$Y$13)+(Z16*$Z$13))*AC16)+(((S16*$S$13)+(T16*$T$13)+(U16*$U$13)+(V16*$V$13)+(W16*$W$13)+(X16*$X$13)+(Y16*$Y$13)+(Z16*$Z$13))*AD16)+(((S16*$S$13)+(T16*$T$13)+(U16*$U$13)+(V16*$V$13)+(W16*$W$13)+(X16*$X$13)+(Y16*$Y$13)+(Z16*$Z$13))*AE16) -> 316054.1913 | AI16: =ROUND(AG16,0) -> 604730 | AJ16: 316054 | AK16: =ROUND(SUM(AI16:AJ16),0) -> 920784
B17: Field Name | C17: Lease Name | D17: Setting | E17: 12345678 | G17: 1 | H17: 1 | I17: 1 | J17: 1 | K17: 1 | L17: 750 | M17: 500 | N17: 10 | O17: 1000 | P17: 1 | Q17: 1000 | S17: 1 | T17: 1 | U17: 1 | V17: 1 | W17: 1 | X17: 1000 | Y17: 100 | Z17: 1000 | AB17: 0.3 | AC17: 0.05 | AD17: 0.05 | AE17: 0.08 | AG17: 648550.8408 | AH17: 338956.6689 | AI17: 648551 | AJ17: 338957 | AK17: 987508
B18: Field Name | C18: Lease Name | D18: Setting | E18: 12345678 | G18: 1 | H18: 1 | I18: 1 | J18: 1 | K18: 1 | L18: 750 | M18: 500 | N18: 10 | S18: 1 | T18: 1 | U18: 1 | V18: 1 | W18: 1 | AB18: 0.1 | AC18: 0.05 | AD18: 0.05 | AE18: 0.08 | AG18: 503881.7813 | AH18: 267779.2239 | AI18: 503882 | AJ18: 267779 | AK18: 771661
B19: Field Name | C19: Lease Name | D19: Setting | E19: 12345678 | G19: 1 | H19: 1 | I19: 1 | J19: 1 | K19: 1 | L19: 750 | M19: 500 | N19: 10 | S19: 1 | T19: 1 | U19: 1 | V19: 1 | W19: 1 | AB19: 0.2 | AC19: 0.05 | AD19: 0.05 | AE19: 0.08 | AG19: 543247.5455 | AH19: 288699.4758 | AI19: 543248 | AJ19: 288699 | AK19: =ROUND(SUM(AI19:AJ19),0) -> 831947
B20: Field Name | C20: Lease Name | D20: Setting | E20: 12345678 | G20: 1 | H20: 1 | I20: 1 | J20: 1 | K20: 1 | L20: 750 | M20: 500 | N20: 10 | S20: 1 | T20: 1 | U20: 1 | V20: 1 | W20: 1 | AB20: 0.3 | AC20: 0.05 | AD20: 0.05 | AE20: 0.08 | AG20: 582613.3096 | AH20: 309619.7277 | AI20: 582613 | AJ20: 309620 | AK20: 892233
B21: Field Name | C21: Lease Name | D21: Setting | E21: 12345678 | G21: 1 | H21: 1 | I21: 1 | J21: 1 | K21: 1 | L21: 750 | M21: 500 | N21: 10 | S21: 1 | T21: 1 | U21: 1 | V21: 1 | W21: 1 | AB21: 0.1 | AC21: 0.05 | AD21: 0.05 | AE21: 0.08 | AG21: 503881.7813 | AH21: 267779.2239 | AI21: 503882 | AJ21: 267779 | AK21: 771661
B22: Field Name | C22: Lease Name | D22: Setting | E22: 12345678 | G22: 1 | H22: 1 | I22: 1 | J22: 1 | K22: 1 | L22: 750 | M22: 500 | N22: 10 | S22: 1 | T22: 1 | U22: 1 | V22: 1 | W22: 1 | AB22: 0.2 | AC22: 0.05 | AD22: 0.05 | AE22: 0.08 | AG22: 543247.5455 | AH22: 288699.4758 | AI22: 543248 | AJ22: 288699 | AK22: 831947
B23: Field Name | C23: Lease Name | D23: Setting | E23: 12345678 | G23: 1 | H23: 1 | I23: 1 | J23: 1 | K23: 1 | L23: 750 | M23: 500 | N23: 10 | S23: 1 | T23: 1 | U23: 1 | V23: 1 | W23: 1 | AB23: 0.3 | AC23: 0.05 | AD23: 0.05 | AE23: 0.08 | AG23: 582613.3096 | AH23: 309619.7277 | AI23: 582613 | AJ23: 309620 | AK23: 892233
B24: Field Name | C24: Lease Name | D24: Setting | E24: 12345678 | G24: 1 | H24: 1 | I24: 1 | J24: 1 | K24: 1 | L24: 750 | M24: 500 | N24: 10 | S24: 1 | T24: 1 | U24: 1 | V24: 1 | W24: 1 | AB24: 0.1 | AC24: 0.05 | AD24: 0.05 | AE24: 0.08 | AG24: 503881.7813 | AH24: 267779.2239 | AI24: 503882 | AJ24: 267779 | AK24: 771661
B25: Field Name | C25: Lease Name | D25: Setting | E25: 12345678 | G25: 1 | H25: 1 | I25: 1 | J25: 1 | K25: 1 | L25: 750 | M25: 500 | N25: 10 | S25: 1 | T25: 1 | U25: 1 | V25: 1 | W25: 1 | AB25: 0.2 | AC25: 0.05 | AD25: 0.05 | AE25: 0.08 | AG25: 543247.5455 | AH25: 288699.4758 | AI25: 543248 | AJ25: 288699 | AK25: 831947
B26: Field Name | C26: Lease Name | D26: Setting | E26: 12345678 | G26: 1 | H26: 1 | I26: 1 | J26: 1 | K26: 1 | L26: 750 | M26: 500 | N26: 10 | S26: 1 | T26: 1 | U26: 1 | V26: 1 | W26: 1 | AB26: 0.3 | AC26: 0.05 | AD26: 0.05 | AE26: 0.08 | AG26: 582613.3096 | AH26: 309619.7277 | AI26: 582613 | AJ26: 309620 | AK26: 892233
B27: Field Name | C27: Lease Name | D27: Setting | E27: 12345678 | G27: 1 | H27: 1 | I27: 1 | J27: 1 | K27: 1 | L27: 750 | M27: 500 | N27: 10 | S27: 1 | T27: 1 | U27: 1 | V27: 1 | W27: 1 | AB27: 0.1 | AC27: 0.05 | AD27: 0.05 | AE27: 0.08 | AG27: 503881.7813 | AH27: 267779.2239 | AI27: 503882 | AJ27: 267779 | AK27: 771661
B28: Field Name | C28: Lease Name | D28: Setting | E28: 12345678 | G28: 1 | H28: 1 | I28: 1 | J28: 1 | K28: 1 | L28: 750 | M28: 500 | N28: 10 | S28: 1 | T28: 1 | U28: 1 | V28: 1 | W28: 1 | AB28: 0.2 | AC28: 0.05 | AD28: 0.05 | AE28: 0.08 | AG28: 543247.5455 | AH28: 288699.4758 | AI28: 543248 | AJ28: 288699 | AK28: 831947
B29: Field Name | C29: Lease Name | D29: Setting | E29: 12345678 | G29: 1 | H29: 1 | I29: 1 | J29: 1 | K29: 1 | L29: 750 | M29: 500 | N29: 10 | S29: 1 | T29: 1 | U29: 1 | V29: 1 | W29: 1 | AB29: 0.3 | AC29: 0.05 | AD29: 0.05 | AE29: 0.08 | AG29: 582613.3096 | AH29: 309619.7277 | AI29: 582613 | AJ29: 309620 | AK29: 892233
B30: Field Name | C30: Lease Name | D30: Setting | E30: 12345678 | G30: 1 | H30: 1 | I30: 1 | J30: 1 | K30: 1 | L30: 750 | M30: 500 | N30: 10 | S30: 1 | T30: 1 | U30: 1 | V30: 1 | W30: 1 | AB30: 0.1 | AC30: 0.05 | AD30: 0.05 | AE30: 0.08 | AG30: 503881.7813 | AH30: 267779.2239 | AI30: 503882 | AJ30: 267779 | AK30: 771661
B31: Field Name | C31: Lease Name | D31: Sump | E31: 12345678 | S31: 0 | T31: 0 | U31: 0 | V31: 0 | W31: 0 | X31: =100*50*15 -> 75000 | AB31: 0.2 | AC31: 0.05 | AD31: 0.05 | AE31: 0.08 | AG31: 0 | AH31: 399992.4225 | AI31: 0 | AJ31: 399992 | AK31: 399992
B32: Field Name | C32: Lease Name | D32: Pipeline | E32: 12345678 | L32: 10000 | M32: 5000 | N32: =(SUM(G32:J32)*$H$49)+(SUM(K32*$J$49)) -> 0 | S32: 0 | T32: 0 | U32: 0 | V32: 0 | W32: 0 | AB32: 0.3 | AC32: 0.05 | AD32: 0.05 | AE32: 0.08 | AG32: 528965.3561 | AH32: 0 | AI32: 528965 | AJ32: 0 | AK32: 528965
C33: Leave this row blank. Insert additonal rows above. | K33: Leave this row blank. Insert additonal rows above. | V33: Leave this row blank. Insert additonal rows above. | AB33: Leave this row blank. Insert additonal rows above.
E34: Total | G34: =IF(SUM(G15:G33)=0,"",SUM(G15:G33)) -> 16 | H34: 16 | I34: 16 | J34: 16 | K34: 16 | L34: 22000 | M34: 13000 | N34: 160 | O34: 3000 | P34: 3 | Q34: 3000 | S34: =IF(SUM(S15:S33)=0,"",SUM(S15:S33)) -> 16 | T34: 16 | U34: 16 | V34: 16 | W34: 16 | X34: 78000 | Y34: 300 | Z34: 3000 | AG34: =IF(SUM(AG15:AG33)=0,"",SUM(AG15:AG33)) -> 9366007.197 | AH34: =IF(SUM(AH15:AH33)=0,"",SUM(AH15:AH33)) -> 5080327.93 | AI34: =ROUND(AG34,0) -> 9366007 | AJ34: =ROUND(AH34,0) -> 5080328 | AK34: =ROUND(SUM(AI34:AJ34),0) -> 14446335
B36: Comments | S36: Acronym | T36: Unit of Measure
S37: CF | T37: Cubic Foot
S38: EA | T38: Each
S39: LF | T39: Linear Foot
S40: LS | T40: Lump Sum
S41: TON | T41: Ton
S42: CY | T42: Cubic Yard
S43: SF | T43: Square Foot
C45: Default Assumptions Per Equipment
B46: Facilities Decommissioning | G46: Unit | H46: Tank | I46: Well | J46: Vessel | K46: Comments
B47: Above-Ground Pipelines | G47: LF | H47: 150 | I47: 100 | J47: =H47 -> 150 | K47: 150 feet per tank & vessel, 100 feet per well
B48: Buried Pipelines | G48: LF | H48: 100 | I48: 50 | J48: =H48 -> 100 | K48: 100 feet per tank & vessel, 50 feet per well
B49: Electrical Vaults & Equipment | G49: TON | H49: 2 | I49: =H49 -> 2 | J49: =H49 -> 2 | K49: 2 tons of electrical equipment per tank, well, vessel
B50: Asphalt & Concrete Per Pump | G50: CF | I50: =20*5*3 -> 300 | K50: 20 x 5 x 3 ft concrete pad per pumping unit
B52: Site Remediation
B53: Contaminated Soil Excavation Per Well | G53: CF | I53: =8*8*6 -> 384 | K53: 8 x 8 x 6 ft of contaminated soil per well
B54: Contaminated Soil Excavation Per Vessel | G54: CF | J54: =H55 -> 441 | K54: 21 x 21 x 1 ft of contaminated soil per vessel
B55: Contaminated Soil Excavation Per Tank (<2.5k bbl) | G55: CF | H55: =21*21*1 -> 441 | K55: 21 x 21 x 1 ft of contaminated soil per tank
B56: Contaminated Soil Excavation Per Tank (2.5k-5k bbl) | G56: CF | H56: =30*30*2 -> 1800 | K56: 30 x 30 x 2 ft of contaminated soil per tank
B57: Contaminated Soil Excavation Per Tank (5k-10k bbl) | G57: CF | H57: =40*40*3 -> 4800 | K57: 40 x 40 x 3 ft of contaminated soil per tank
B58: Contaminated Soil Excavation Per Tank (>10k bbl) | G58: CF | H58: =52*52*4 -> 10816 | K58: 52 x 52 x 4 ft of contaminated soil per tank
B59: Site Restoration Per Well | G59: CF | I59: =I66+I53 -> 2384 | K59: Sum of access road & contaminated soil volumes
B60: Site Restoration Per Tank Vessel | G60: CF | J60: 441 | K60: Contaminated soil volume
B61: Site Restoration Per Tank (<2.5k bbl) | G61: CF | H61: =H55 -> 441 | K61: Contaminated soil volume
B62: Site Restoration Per Tank (2.5k-5k bbl) | G62: CF | H62: =H56 -> 1800 | K62: Contaminated soil volume
B63: Site Restoration Per Tank (5k-10k bbl) | G63: CF | H63: =H57 -> 4800 | K63: Contaminated soil volume
B64: Site Restoration Per Tank (>10k bbl) | G64: CF | H64: =H58 -> 10816 | K64: Contaminated soil volume
B65: Waste Removal | G65: CY | H65: 10 | I65: =H65 -> 10 | J65: =H65 -> 10 | K65: 10 cubic yards of waste per tank, well, vessel
B66: Access Road | G66: CF | I66: =100*20*1 -> 2000 | K66: 100 x 20 x 1 ft or 200 x 10 x 1 ft of access road per well

Sheet Well Site Rem. Estimate
J4: Well Site Remediation Cost Estimation
B8: Operator Name: | D8: Generic Oil Company
B9: Operator Code: | D9: X1234
B10: Lease Name: | D10: Lease Name
B11: Field Name: | D11: Field Name
B12: Well Type: | D12: Oil & Gas, Multi-Purpose, Water Disposal, etc.
B13: Subject ID: | D13: 12345678
B14: Contact Name: | D14: Operator Contact
B15: Contact Email Address: | D15: Operator Contact Email
B16: Contact Phone Number: | D16: 123-456-7890
B17: Date: | D17: =TODAY() -> 2022-04-01
B19: Cost Element | D19: Total Cost ($) | E19: Quantity | F19: Unit | G19: Unit Cost ($) | H19: % of Total Cost | I19: Description
B20: Well Site Equipment Removal
C21: Above-Ground Pipelines | D21: =IFERROR((E21*G21),"") -> 2971.21025 | E21: 100 | F21: LF | G21: 29.7121025 | H21: =IFERROR((D21/$D$39),"") -> 0.0731691269 | I21: Remove and dispose of pipelines: transmission, flowline, injection, gathering lines, vent, process piping.
C22: Buried Pipelines | D22: 602.8799941 | E22: 50 | F22: LF | G22: 12.05759988 | H22: =IFERROR((D22/$D$39),"") -> 0.01484654369 | I22: Any remaining buried pipelines must be purged, capped, and filled with an inert fluid.
C23: Electrical Vaults & Equipment | D23: 779.2242424 | E23: 2 | F23: TON | G23: 389.6121212 | H23: =IFERROR((D23/$D$39),"") -> 0.01918920328 | I23: Remove and dispose of electrical equipment: poles, transformers, switchgear, cables, wires, conduit, switches, monitoring equipment.
C24: Asphalt & Concrete | D24: 2916.201401 | E24: 300 | F24: CF | G24: 9.720671337 | H24: =IFERROR((D24/$D$39),"") -> 0.07181447707 | I24: Remove and dispose of concrete pads and asphalt.
C25: Pumps | D25: 4385.789598 | E25: 1 | F25: EA | G25: 4385.789598 | H25: =IFERROR((D25/$D$39),"") -> 0.1080046071 | I25: Remove and dispose of pumps.
C26: Subtotal | D26: =SUM(D21:D25) -> 11655.30549 | H26: =SUM(H21:H25) -> 0.287023958
B28: Site Remediation
C29: Wellhead | D29: =IFERROR((E29*G29),"") -> 10158.03492 | E29: 1 | F29: EA | G29: 10158.03492 | H29: =IFERROR((D29/$D$39),"") -> 0.2501521211 | I29: Site remediation for the area around a wellhead including contaminated soil excavation & disposal, waste removal, site restoration, and access road removal.
C30: Well Cellars | D30: =IFERROR((E30*G30),"") -> 8540.214828 | E30: 1 | F30: EA | G30: 8540.214828 | H30: =IFERROR((D30/$D$39),"") -> 0.2103116272 | I30: Remove and dispose of well cellars.
C31: Refuse Removal | D31: 1371 | E31: 10 | F31: CY | G31: 137.1 | H31: =IFERROR((D31/$D$39),"") -> 0.03376229366 | I31: Remove and dispose of all refuse, trash, debris, construction materials, production pads, piers, fencing outside the area of a wellhead but within a well site.
C32: Subtotal | D32: =SUM(D29:D31) -> 20069.24975 | H32: =SUM(H29:H31) -> 0.494226042
B34: Contingency | D34: =SUM(D26,D32)*E34 -> 3172.455523 | E34: ='Contingency Calculation'!F20 -> 10% | H34: =IFERROR((D34/$D$39),"") -> 0.078125 | I34: Contingency calculated from the Contingency tab.
B35: Permitting & Regulatory Compliance | D35: =SUM(D26,D32)*E35 -> 1586.227762 | E35: 0.05 | H35: =IFERROR((D35/$D$39),"") -> 0.0390625 | I35: Costs to develop and obtain permits to perform the decommissioning and site remediation scope of work.
B36: Mobilization & Demobilization | D36: =SUM(D26,D32)*E36 -> 1586.227762 | E36: 0.05 | H36: 0.0390625 | I36: Mobilization and Demobilization of equipment and crews to start and finish the project.
B37: Project Management & Engineering | D37: =SUM(D26,D32)*E37 -> 2537.964419 | E37: 0.08 | H37: 0.0625 | I37: Costs for Project Management & Engineering
B39: TOTAL COST ESTIMATE | D39: =D26+D32+D34+D35+D36+D37 -> 40607.4307 | H39: =IFERROR((H26+H32+H34+H35+H36+H37),"") -> 1
B41: Comments | J41: Acronym | K41: Unit of Measure | N41: WellSTAR Input
B42: Please provide additional scope of work information here. | J42: CF | K42: Cubic Foot | M42: Site Remediation | P42: =D39 -> 40607.4307
J43: EA | K43: Each
J44: LF | K44: Linear Foot
J45: LS | K45: Lump Sum
J46: TON | K46: Ton
J47: CY | K47: Cubic Yard
J48: SF | K48: Square Foot
C50: Default Assumptions Per Equipment
B51: Facilities Decommissioning | E51: Unit | F51: Tank | G51: Well | H51: Vessel | I51: Comments
C52: Above-Ground Pipelines | E52: LF | F52: 150 | G52: 100 | H52: =F52 -> 150 | I52: 150 feet per tank & vessel, 100 feet per well
C53: Buried Pipelines | E53: LF | F53: 100 | G53: 50 | H53: =F53 -> 100 | I53: 100 feet per tank & vessel, 50 feet per well
C54: Electrical Vaults & Equipment | E54: TON | F54: 2 | G54: =F54 -> 2 | H54: =F54 -> 2 | I54: 2 tons of electrical equipment per tank, well, vessel
C55: Asphalt & Concrete Per Pump | E55: CF | G55: =20*5*3 -> 300 | I55: 20 x 5 x 3 ft concrete pad per pumping unit
B57: Site Remediation
C58: Contaminated Soil Excavation Per Well | E58: CF | G58: =8*8*6 -> 384 | I58: 8 x 8 x 6 ft of contaminated soil per well
C59: Contaminated Soil Excavation Per Vessel | E59: CF | H59: =F60 -> 441 | I59: 21 x 21 x 1 ft of contaminated soil per vessel
C60: Contaminated Soil Excavation Per Tank (<2.5k bbl) | E60: CF | F60: =21*21*1 -> 441 | I60: 21 x 21 x 1 ft of contaminated soil per tank
C61: Contaminated Soil Excavation Per Tank (2.5k-5k bbl) | E61: CF | F61: =30*30*2 -> 1800 | I61: 30 x 30 x 2 ft of contaminated soil per tank
C62: Contaminated Soil Excavation Per Tank (5k-10k bbl) | E62: CF | F62: =40*40*3 -> 4800 | I62: 40 x 40 x 3 ft of contaminated soil per tank
C63: Contaminated Soil Excavation Per Tank (>10k bbl) | E63: CF | F63: =52*52*4 -> 10816 | I63: 52 x 52 x 4 ft of contaminated soil per tank
C64: Site Restoration Per Well | E64: CF | G64: =G71+G58 -> 2384 | I64: Sum of access road & contaminated soil volumes
C65: Site Restoration Per Vessel | E65: CF | H65: 441 | I65: Contaminated soil volume
C66: Site Restoration Per Tank (<2.5k bbl) | E66: CF | F66: =F60 -> 441 | I66: Contaminated soil volume
C67: Site Restoration Per Tank (2.5k-5k bbl) | E67: CF | F67: =F61 -> 1800 | I67: Contaminated soil volume
C68: Site Restoration Per Tank (5k-10k bbl) | E68: CF | F68: =F62 -> 4800 | I68: Contaminated soil volume
C69: Site Restoration Per Tank (>10k bbl) | E69: CF | F69: =F63 -> 10816 | I69: Contaminated soil volume
C70: Waste Removal | E70: CY | F70: 10 | G70: =F70 -> 10 | H70: =F70 -> 10 | I70: 10 cubic yards of waste per tank, well, vessel
C71: Access Road | E71: CF | G71: =100*20*1 -> 2000 | I71: 100 x 20 x 1 ft or 200 x 10 x 1 ft of access road per well

Sheet Well Site Rem. Batch
I3: Well Site Remediation Cost Estimation
K4: Batch Template
B7: Operator Name: | D7: ='Fac. Dec. & Site Rem. Batch'!D7 -> Generic Oil Company | M7: Contact Email Address: | O7: ='Fac. Dec. & Site Rem. Batch'!W7 -> Operator Contact Email
B8: Operator Code: | D8: ='Fac. Dec. & Site Rem. Batch'!D8 -> X1234 | M8: Contact Phone Number: | O8: ='Fac. Dec. & Site Rem. Batch'!W8 -> Operator Contact Phone
B9: Contact Name: | D9: ='Fac. Dec. & Site Rem. Batch'!D9 -> Operator Contact Name | M9: Date: | O9: Date
C11: Well Information | H11: Well Site Equipment Removal | N11: Well Site Remediation | Q11: Other Project Components | W11: WellSTAR Input
B12: Field | C12: Lease | D12: Well Type | E12: Subject ID | G12: Above-Ground Pipelines | H12: Buried Pipelines | I12: Electrical Vaults & Equipment | J12: Asphalt & Concrete | K12: Pumps | M12: Wellhead | N12: Well Cellars | O12: Refuse Removal | Q12: Contingency | R12: Permitting & Regulatory Compliance | S12: Mobilization & Demobilization | T12: Project Management & Engineering | V12: Site Remediation Total Cost | W12: Site Remediation Total Cost
E13: Unit Cost | G13: 29.7121025 | H13: 12.05759988 | I13: 389.6121212 | J13: 9.720671337 | K13: 4385.789598 | M13: 10158.03492 | N13: 8540.214828 | O13: 137.1
E14: Unit | G14: LF | H14: LF | I14: TON | J14: CF | K14: EA | M14: EA | N14: EA | O14: CY
B15: Field Name | C15: Lease Name | D15: Oil & Gas | E15: 12345678 | G15: 100 | H15: 50 | I15: 2 | J15: 300 | K15: 1 | M15: 1 | N15: 1 | O15: 10 | Q15: 0.1 | R15: 0.05 | S15: 0.05 | T15: 0.08 | V15: =((G15*$G$13)+(H15*$H$13)+(I15*$I$13)+(J15*$J$13)+(N15*$N$13)+(K15*$K$13)+(M15*$M$13)+(O15*$O$13))+(((G15*$G$13)+(H15*$H$13)+(I15*$I$13)+(J15*$J$13)+(N15*$N$13)+(K15*$K$13)+(M15*$M$13)+(O15*$O$13))*Q15)+(((G15*$G$13)+(H15*$H$13)+(I15*$I$13)+(J15*$J$13)+(N15*$N$13)+(K15*$K$13)+(M15*$M$13)+(O15*$O$13))*R15)+(((G15*$G$13)+(H15*$H$13)+(I15*$I$13)+(J15*$J$13)+(N15*$N$13)+(K15*$K$13)+(M15*$M$13)+(O15*$O$13))*S15)+(((G15*$G$13)+(H15*$H$13)+(I15*$I$13)+(J15*$J$13)+(N15*$N$13)+(K15*$K$13)+(M15*$M$13)+(O15*$O$13))*T15) -> 40607.4307 | W15: =ROUND(V15,0) -> 40607
B16: Field Name | C16: Lease Name | D16: Oil & Gas | E16: 12345678 | G16: 100 | H16: 50 | I16: 2 | J16: 300 | K16: 1 | M16: 1 | N16: 1 | O16: 10 | Q16: 0.2 | R16: 0.05 | S16: 0.05 | T16: 0.08 | V16: 43779.88622 | W16: 43780
B17: Field Name | C17: Lease Name | D17: Oil & Gas | E17: 12345678 | G17: 100 | H17: 50 | I17: 2 | J17: 300 | K17: 1 | M17: 1 | N17: 1 | O17: 10 | Q17: 0.3 | R17: 0.05 | S17: 0.05 | T17: 0.08 | V17: 46952.34175 | W17: 46952
B18: Field Name | C18: Lease Name | D18: Oil & Gas | E18: 12345678 | G18: 100 | H18: 50 | I18: 2 | J18: 0 | M18: 1 | N18: 1 | Q18: 0.1 | R18: 0.05 | S18: 0.05 | T18: 0.08 | V18: 29506.00222 | W18: 29506
B19: Field Name | C19: Lease Name | D19: Oil & Gas | E19: 12345678 | G19: 100 | H19: 50 | I19: 2 | J19: 0 | M19: 1 | N19: 1 | Q19: 0.2 | R19: 0.05 | S19: 0.05 | T19: 0.08 | V19: 31811.15864 | W19: 31811
B20: Field Name | C20: Lease Name | D20: Oil & Gas | E20: 12345678 | G20: 100 | H20: 50 | I20: 2 | J20: 0 | M20: 1 | N20: 1 | Q20: 0.3 | R20: 0.05 | S20: 0.05 | T20: 0.08 | V20: 34116.31507 | W20: 34116
B21: Field Name | C21: Lease Name | D21: Oil & Gas | E21: 12345678 | G21: 100 | H21: 50 | I21: 2 | J21: 300 | K21: 1 | M21: 1 | Q21: 0.1 | R21: 0.05 | S21: 0.05 | T21: 0.08 | V21: 27921.07572 | W21: 27921
B22: Field Name | C22: Lease Name | D22: Oil & Gas | E22: 12345678 | G22: 100 | H22: 50 | I22: 2 | J22: 300 | K22: 1 | M22: 1 | Q22: 0.2 | R22: 0.05 | S22: 0.05 | T22: 0.08 | V22: 30102.40976 | W22: 30102
B23: Field Name | C23: Lease Name | D23: Oil & Gas | E23: 12345678 | G23: 100 | H23: 50 | I23: 2 | J23: 300 | K23: 1 | M23: 1 | Q23: 0.3 | R23: 0.05 | S23: 0.05 | T23: 0.08 | V23: 32283.7438 | W23: 32284
B24: Field Name | C24: Lease Name | D24: Oil & Gas | E24: 12345678 | G24: 100 | H24: 50 | I24: 2 | J24: 0 | M24: 1 | Q24: 0.1 | R24: 0.05 | S24: 0.05 | T24: 0.08 | V24: 18574.52724 | W24: 18575
B25: Field Name | C25: Lease Name | D25: Oil & Gas | E25: 12345678 | G25: 100 | H25: 50 | I25: 2 | J25: 0 | M25: 1 | Q25: 0.2 | R25: 0.05 | S25: 0.05 | T25: 0.08 | V25: 20025.66218 | W25: 20026
B26: Field Name | C26: Lease Name | D26: Oil & Gas | E26: 12345678 | G26: 100 | H26: 50 | I26: 2 | J26: 0 | M26: 1 | Q26: 0.3 | R26: 0.05 | S26: 0.05 | T26: 0.08 | V26: 21476.79712 | W26: 21477
B27: Field Name | C27: Lease Name | D27: Oil & Gas | E27: 12345678 | J27: 0 | M27: 1 | Q27: 0.1 | R27: 0.05 | S27: 0.05 | T27: 0.08 | V27: 13002.2847 | W27: 13002
B28: Field Name | C28: Lease Name | D28: Oil & Gas | E28: 12345678 | J28: 0 | M28: 1 | Q28: 0.2 | R28: 0.05 | S28: 0.05 | T28: 0.08 | V28: 14018.08819 | W28: 14018
B29: Field Name | C29: Lease Name | D29: Oil & Gas | E29: 12345678 | J29: 0 | M29: 1 | Q29: 0.3 | R29: 0.05 | S29: 0.05 | T29: 0.08 | V29: 15033.89168 | W29: 15034
B30: Field Name | C30: Lease Name | D30: Oil & Gas | E30: 12345678 | J30: 0 | M30: 1 | Q30: 0.1 | R30: 0.05 | S30: 0.05 | T30: 0.08 | V30: 13002.2847 | W30: 13002
B31: Field Name | C31: Lease Name | D31: Multi-Purpose | E31: 12345678 | J31: 0 | M31: 1 | Q31: 0.2 | R31: 0.05 | S31: 0.05 | T31: 0.08 | V31: 14018.08819 | W31: 14018
B32: Field Name | C32: Lease Name | D32: Water Disposal | E32: 12345678 | J32: 0 | M32: 1 | Q32: 0.3 | R32: 0.05 | S32: 0.05 | T32: 0.08 | V32: 15033.89168 | W32: 15034
C33: Leave this row blank. Insert additonal rows above. | G33: Leave this row blank. Insert additonal rows above. | M33: Leave this row blank. Insert additonal rows above. | Q33: Leave this row blank. Insert additonal rows above.
E34: Total | G34: =IF(SUM(G15:G33)=0,"",SUM(G15:G33)) -> 1200 | H34: 600 | I34: 24 | J34: 1800 | K34: 6 | M34: =IF(SUM(M15:M33)=0,"",SUM(M15:M33)) -> 18 | N34: =IF(SUM(N15:N33)=0,"",SUM(N15:N33)) -> 6 | O34: =IF(SUM(O15:O33)=0,"",SUM(O15:O33)) -> 30 | V34: =IF(SUM(V15:V33)=0,"",SUM(V15:V33)) -> 461265.8796 | W34: =ROUND(V34,0) -> 461266
B36: Comments | M36: Acronym | N36: Unit of Measure
M37: CF | N37: Cubic Foot
M38: EA | N38: Each
M39: LF | N39: Linear Foot
M40: LS | N40: Lump Sum
M41: TON | N41: Ton
M42: CY | N42: Cubic Yard
M43: SF | N43: Square Foot
C45: Default Assumptions Per Equipment
B46: Facilities Decommissioning | G46: Unit | H46: Tank | I46: Well | J46: Vessel | N46: Comments
B47: Above-Ground Pipelines | G47: LF | H47: 150 | I47: 100 | J47: =H47 -> 150 | N47: 150 feet per tank & vessel, 100 feet per well
B48: Buried Pipelines | G48: LF | H48: 100 | I48: 50 | J48: =H48 -> 100 | N48: 100 feet per tank & vessel, 50 feet per well
B49: Electrical Vaults & Equipment | G49: TON | H49: 2 | I49: =H49 -> 2 | J49: =H49 -> 2 | N49: 2 tons of electrical equipment per tank, well, vessel
B50: Asphalt & Concrete Per Pump | G50: CF | I50: =20*5*3 -> 300 | N50: 20 x 5 x 3 ft concrete pad per pumping unit
B52: Site Remediation
B53: Contaminated Soil Excavation Per Well | G53: CF | I53: =8*8*6 -> 384 | N53: 8 x 8 x 6 ft of contaminated soil per well
B54: Contaminated Soil Excavation Per Vessel | J54: =H55 -> 441 | N54: 21 x 21 x 1 ft of contaminated soil per vessel
B55: Contaminated Soil Excavation Per Tank (<2.5k bbl) | G55: CF | H55: =21*21*1 -> 441 | N55: 21 x 21 x 1 ft of contaminated soil per tank
B56: Contaminated Soil Excavation Per Tank (2.5k-5k bbl) | G56: CF | H56: =30*30*2 -> 1800 | N56: 30 x 30 x 2 ft of contaminated soil per tank
B57: Contaminated Soil Excavation Per Tank (5k-10k bbl) | G57: CF | H57: =40*40*3 -> 4800 | N57: 40 x 40 x 3 ft of contaminated soil per tank
B58: Contaminated Soil Excavation Per Tank (>10k bbl) | G58: CF | H58: =52*52*4 -> 10816 | N58: 52 x 52 x 4 ft of contaminated soil per tank
B59: Site Restoration Per Well | G59: CF | I59: =I66+I53 -> 2384 | N59: Sum of access road & contaminated soil volumes
B60: Site Restoration Per Tank Vessel | J60: 441 | N60: Contaminated soil volume
B61: Site Restoration Per Tank (<2.5k bbl) | G61: CF | H61: =H55 -> 441 | N61: Contaminated soil volume
B62: Site Restoration Per Tank (2.5k-5k bbl) | G62: CF | H62: =H56 -> 1800 | N62: Contaminated soil volume
B63: Site Restoration Per Tank (5k-10k bbl) | G63: CF | H63: =H57 -> 4800 | N63: Contaminated soil volume
B64: Site Restoration Per Tank (>10k bbl) | G64: CF | H64: =H58 -> 10816 | N64: Contaminated soil volume
B65: Waste Removal | G65: CY | H65: 10 | I65: =H65 -> 10 | J65: =H65 -> 10 | N65: 10 cubic yards of waste per tank, well, vessel
B66: Access Road | G66: CF | I66: =100*20*1 -> 2000 | N66: 100 x 20 x 1 ft or 200 x 10 x 1 ft of access road per well

Sheet Contingency Calculation
C4: Production Facility Decommissioning & Site Remediation Contingency Calculation
B8: Production Facility and Site Location Characteristics | E8: Yes/No | F8: Score | H8: Weight | I8: Description
C10: Production facility is located in an environmentally sensitive, as defined in sensitive, or urban area, as defined in Section 1760 | E10: No | F10: =IF(E10="Yes","10","0") -> 0 | H10: 10 | I10: As defined in § 1760 of the Statues & Regulations
C11: Any other conditions that potentially pose a threat to life, health, property, or natural resources | E11: No | F11: =IF(E11="Yes","10","0") -> 0 | H11: 10 | I11: Any other conditions that pose a threat to life, health, property, or natural resources
C12: History of spills and/or leaks; unlined sumps | E12: No | F12: =IF(E12="Yes","10","0") -> 0 | H12: 10 | I12: Risk of increased soil contamination.
C13: Original land type has freshwater aquifer underneath | E13: No | F13: =IF(E13="Yes","5","0") -> 0 | H13: 5 | I13: Contamination concern into freshwater aquifer
C14: Production facility location is in an area of known geologic hazards including subsidence, landslides, or seismicity | E14: No | F14: =IF(E14="Yes","5","0") -> 0 | H14: 5 | I14: Facility is located in an area of known geologic hazards, such as subsidence, landslides, or a history of damage to wells and facilities in the area from seismicity.
C15: Surface obstacles preventing access such as buildings, structures, surface-use, roads, irrigation systems, terrain | E15: No | F15: =IF(E15="Yes","5","0") -> 0 | H15: 5 | I15: Facility location has surface obstacles or other impediments preventing access to the location, including but not limited to surface-use activities, irrigation systems, roads, terrain, or restricted access.
C16: Age of facility is greater than 50 years | E16: No | F16: =IF(E16="Yes","5","0") -> 0 | H16: 5 | I16: Older facilities may contain more hazardous building materials such as asbestos, and may have more widespread soil and/or groundwater impacts given the longer operating lifespan of the facility, and historical operational practices. Many older faciltiies may also have a larger footprint compared to newer facilities.
C17: Notices of violation that are unresolved exist for the production facility | E17: No | F17: =IF(E17="Yes","5","0") -> 0 | H17: 5 | I17: Facility, equipment, pipelines not in use and cannot be put back In-Service until all repairs are completed and the facility is in compliance with all applicable testing and inspection requirements.
B19: Total Score | F19: =F10+F14+F15+F13+F11+F16+F17+F12 -> 0
B20: Contingency % | F20: =IF(F19>19, "30%", IF(F19>9,"20%", "10%")) -> 10%
E22: Contingency Score
E23: <10 Points | F23: 0.1
E24: 10 - 19 Points | F24: 0.2
E25: >20 Points | F25: 0.3

Sheet Cost Summary (hidden)
D2: Cost Estimate Summary - Operator Liability Report - | J2: References
D4: Cost
B6: S/N | C6: Type | D6: P&A/Decommissioning | E6: Site Remmediation | F6: Total
B7: 1 | C7: Well | D7: ='Well P&A Cost Estimate'!R53 -> 81650 | E7: 17512 | F7: =D7+E7 -> 99162
B8: 2 | C8: Facility | D8: 87114 | E8: 25000 | F8: =D8+E8 -> 112114
B9: 3 | C9: Lease | F9: 0
C12: Total | F12: =SUM(F7:F10) -> 211276
O14: Existing | P14: Facility | Q14: 90299477 | R14: Temescal | S14: Setting | T14: Active | U14: 10 | V14: Coastal | W14: Temescal | X14: Temescal | Y14: 03, 04N, 18W, SB | AA14: N | AD14: =IF(OR(AB14<>"",AC14<>""),TEXT(SUM(VALUE(AB14),VALUE(AC14)),"$#,##0.00"),"") -> 
O15: Existing | P15: Facility | Q15: 90319516 | R15: OOS Tank Facility | S15: Setting | T15: Idle | U15: 2 | V15: Coastal | W15: Temescal | X15: Temescal | Y15: 10, 04N, 18W, SB | AA15: N
O16: Existing | P16: Facility | Q16: 90321134 | R16: Temescal 9 Tank | S16: Setting | T16: Idle | U16: 1 | V16: Coastal | W16: Temescal | X16: Temescal | Y16: 09, 04N, 18W, SB | AA16: N
